bitfinex-derivatives/quotes_BTCF0:USTF0_20210707
["timestamp","ask_amount","ask_price","bid_price","bid_amount"]
[1625647669572,1.77789449,34772.0,34771.0,6.44648554]
[1625647671979,1.77789449,34772.0,34771.0,7.78176458]
[1625647672220,0.76201505,34772.0,34771.0,7.78176458]
[1625647673242,1.77782863,34772.0,34771.0,7.78176458]
[1625647673659,0.76201505,34772.0,34771.0,7.78176458]
[1625647674139,1.77779388,34772.0,34771.0,7.78176458]
[1625647674379,0.76201505,34772.0,34771.0,7.78656348]
[1625647675763,0.52143961,34772.0,34771.0,7.78656348]
[1625647675891,0.09817836,34772.0,34771.0,7.78656348]
[1625647676005,0.09817836,34772.0,34771.0,8.21642748]
[1625647676484,0.01338337,34772.0,34771.0,9.71697977]
[1625647677386,0.01338337,34772.0,34771.0,8.21642748]
[1625647677627,0.01338337,34772.0,34771.0,9.71648288]
[1625647683275,0.09814886,34772.0,34771.0,8.21642748]
[1625647683698,0.35195256,34772.0,34771.0,8.21642748]
[1625647683997,0.52120366,34772.0,34771.0,8.21642748]
[1625647688210,0.43680186,34772.0,34771.0,8.21642748]
[1625647688395,0.09816861,34772.0,34771.0,8.21642748]
[1625647688628,0.01338337,34772.0,34771.0,8.21642748]
[1625647690010,0.01338337,34772.0,34771.0,9.71596696]
[1625647691451,0.01338337,34772.0,34771.0,9.80176696]
[1625647691931,0.01338337,34772.0,34771.0,9.71596696]
[1625647692591,0.48115088,34773.0,34771.0,9.71596696]
[1625647692711,0.48115088,34773.0,34772.0,0.0852]
[1625647692953,0.48115088,34773.0,34772.0,5.58734439]
[1625647693072,0.48115088,34773.0,34772.0,6.01413639]
[1625647693193,0.49447747,34773.0,34772.0,6.01413639]
[1625647694453,0.55147747,34773.0,34772.0,6.01413639]
[1625647694755,0.97485936,34773.0,34772.0,4.51486541]
[1625647694875,0.97485936,34773.0,34772.0,4.42966541]
[1625647695056,6.01938145,34773.0,34772.0,4.42966541]
[1625647695414,5.96238145,34773.0,34772.0,4.42966541]
[1625647695534,5.96238145,34773.0,34772.0,5.09665344]
[1625647695834,5.96238145,34773.0,34772.0,9.92285344]
[1625647695955,0.83308145,34773.0,34772.0,10.00925344]
[1625647696255,0.49447747,34773.0,34772.0,11.50914204]
[1625647697215,0.57929015,34773.0,34772.0,11.50914204]
[1625647697457,0.49447747,34773.0,34772.0,11.42274204]
[1625647697882,0.25390203,34773.0,34772.0,11.42274204]
[1625647697996,0.24057544,34773.0,34772.0,11.42274204]
[1625647698537,0.24057544,34773.0,34772.0,11.74831748]
[1625647699567,0.08483408,34775.0,34772.0,11.74831748]
[1625647699681,0.08481824,34777.0,34772.0,11.74831748]
[1625647699801,0.08481824,34777.0,34773.0,0.00481685]
[1625647699921,0.001,34778.0,34777.0,0.0865]
[1625647700222,0.001,34778.0,34777.0,6.67332385]
[1625647700342,0.01432524,34778.0,34777.0,6.67814058]
[1625647700463,0.01432524,34778.0,34777.0,7.15929146]
[1625647700703,0.001,34778.0,34777.0,7.15929146]
[1625647705335,0.001,34778.0,34777.0,7.23059146]
[1625647707493,3.4967,34778.0,34777.0,7.23059146]
[1625647707974,3.4967,34778.0,34777.0,7.14409146]
[1625647708757,3.5537,34778.0,34777.0,7.14409146]
[1625647708876,3.5537,34778.0,34777.0,7.13927473]
[1625647709422,3.5527,34778.0,34777.0,5.21092277]
[1625647709661,4.07366473,34778.0,34777.0,5.21092277]
[1625647710440,4.75048371,34778.0,34777.0,5.21092277]
[1625647710680,4.75048371,34778.0,34777.0,3.8799308]
[1625647711403,4.75048371,34778.0,34777.0,5.21205077]
[1625647712843,4.41215665,34778.0,34777.0,5.21205077]
[1625647712962,4.39883746,34778.0,34777.0,5.21205077]
[1625647713203,3.80677349,34778.0,34777.0,9.76045077]
[1625647713444,4.14526111,34778.0,34777.0,9.76045077]
[1625647713804,4.06051356,34778.0,34777.0,9.76045077]
[1625647714044,4.41215534,34778.0,34777.0,9.76045077]
[1625647714284,4.07366772,34778.0,34777.0,9.76045077]
[1625647714526,4.14525337,34778.0,34777.0,9.76045077]
[1625647714767,3.5527,34778.0,34777.0,9.76045077]
[1625647715248,3.4957,34778.0,34777.0,9.76045077]
[1625647715368,3.4957,34778.0,34777.0,9.76527028]
[1625647715489,3.4957,34778.0,34777.0,11.26381462]
[1625647715968,3.4957,34778.0,34777.0,9.76527028]
[1625647716089,3.4957,34778.0,34777.0,9.85247028]
[1625647716870,3.4957,34778.0,34777.0,9.76527028]
[1625647717471,3.5527,34778.0,34777.0,9.76527028]
[1625647717712,3.56601849,34778.0,34777.0,9.76045077]
[1625647717893,3.82005876,34778.0,34777.0,9.76045077]
[1625647718553,3.82005876,34778.0,34777.0,9.76527044]
[1625647718913,4.15850108,34778.0,34777.0,9.76045077]
[1625647719515,4.07376461,34778.0,34777.0,9.76045077]
[1625647719636,4.07376461,34778.0,34777.0,9.84755077]
[1625647720176,4.07376461,34778.0,34777.0,5.21205077]
[1625647720537,4.31434005,34778.0,34777.0,5.21205077]
[1625647721015,4.31434005,34778.0,34777.0,5.21686956]
[1625647721255,4.31434005,34778.0,34777.0,5.21205077]
[1625647721796,4.65261195,34778.0,34777.0,5.21205077]
[1625647722756,4.14503625,34778.0,34777.0,5.21205077]
[1625647722996,4.65261088,34778.0,34777.0,5.21205077]
[1625647723476,4.31416856,34778.0,34777.0,5.21205077]
[1625647723657,4.6526511,34778.0,34777.0,5.21205077]
[1625647725341,4.31416856,34778.0,34777.0,5.21205077]
[1625647726663,4.31416856,34778.0,34777.0,5.21686974]
[1625647727986,4.99109133,34778.0,34777.0,5.21686974]
[1625647728894,6.00640903,34778.0,34777.0,3.88474977]
[1625647729016,6.00640903,34778.0,34777.0,3.8799308]
[1625647730457,7.19114164,34778.0,34777.0,3.8799308]
[1625647731178,7.19114164,34778.0,34777.0,2.71531283]
[1625647732621,7.19114164,34778.0,34777.0,2.47473739]
[1625647732806,7.19114164,34778.0,34777.0,3.64185681]
[1625647733041,7.19114164,34778.0,34777.0,2.47473739]
[1625647733283,7.19114164,34778.0,34777.0,3.64206015]
[1625647738149,6.9505662,34778.0,34777.0,3.40148471]
[1625647738810,7.43171708,34778.0,34777.0,3.40148471]
[1625647748491,7.43171708,34778.0,34777.0,3.47278471]
[1625647752456,7.41839859,34778.0,34777.0,3.47278471]
[1625647752818,7.43173518,34778.0,34777.0,3.47278471]
[1625647757624,7.43173518,34778.0,34777.0,3.69739471]
[1625647758646,7.46568965,34778.0,34777.0,3.70220629]
[1625647759972,7.46568965,34778.0,34777.0,3.47759629]
[1625647765687,8.82120738,34778.0,34777.0,3.47759629]
[1625647767912,8.83454423,34778.0,34777.0,3.47759629]
[1625647768330,8.83454423,34778.0,34777.0,3.48241049]
[1625647770554,8.83454423,34778.0,34777.0,2.31508773]
[1625647772057,8.83454423,34778.0,34777.0,3.48606396]
[1625647773740,8.86849956,34778.0,34777.0,3.48606396]
[1625647774400,8.86849956,34778.0,34777.0,2.31508773]
[1625647775602,8.86849956,34778.0,34777.0,3.48583275]
[1625647776808,8.86849956,34778.0,34777.0,7.96603275]
[1625647777947,8.86849956,34778.0,34777.0,3.48583275]
[1625647783121,8.88183716,34778.0,34777.0,3.48583275]
[1625647788832,8.91579361,34778.0,34777.0,3.48583275]
[1625647789190,10.44269373,34778.0,34777.0,3.48583275]
[1625647792016,10.44269373,34778.0,34777.0,2.31508773]
[1625647798156,10.45603169,34778.0,34777.0,2.31508773]
[1625647805969,10.44269373,34778.0,34777.0,2.31508773]
[1625647806089,10.48999323,34778.0,34777.0,2.31508773]
[1625647819076,10.44269373,34778.0,34777.0,2.31508773]
[1625647820820,6.80511644,34778.0,34777.0,2.30546195]
[1625647821060,6.74811644,34778.0,34777.0,3.47813339]
[1625647821299,6.74811644,34778.0,34777.0,3.48295044]
[1625647821420,5.22121632,34778.0,34777.0,7.66865044]
[1625647821721,3.86569859,34778.0,34777.0,9.00823762]
[1625647822382,2.68096598,34778.0,34777.0,10.5180884]
[1625647826586,2.68096598,34778.0,34777.0,10.51327135]
[1625647829174,1.66564828,34778.0,34777.0,10.51327135]
[1625647830491,6.28374828,34778.0,34777.0,10.51327135]
[1625647836384,6.28374828,34778.0,34777.0,9.00342057]
[1625647837527,6.28374828,34778.0,34777.0,10.52072446]
[1625647838007,6.28374828,34778.0,34777.0,9.00342057]
[1625647838729,1.66564828,34778.0,34777.0,9.00342057]
[1625647842155,0.98872551,34778.0,34777.0,9.00342057]
[1625647842513,0.98872551,34778.0,34777.0,9.00823514]
[1625647843054,0.98872551,34778.0,34777.0,10.52582682]
[1625647843356,0.98872551,34778.0,34777.0,9.00823514]
[1625647844138,1.32744428,34778.0,34777.0,9.00823514]
[1625647845520,0.98930494,34778.0,34777.0,10.95513549]
[1625647846059,0.98930494,34778.0,34777.0,11.04063549]
[1625647846359,1.07410246,34778.0,34777.0,11.04063549]
[1625647847020,1.07410246,34778.0,34777.0,10.95513549]
[1625647847200,0.73538369,34778.0,34777.0,10.95513549]
[1625647847562,1.0740465,34778.0,34777.0,10.95513549]
[1625647847741,0.98924898,34778.0,34777.0,10.95513549]
[1625647848342,0.98924898,34778.0,34777.0,9.43778814]
[1625647848588,0.98924898,34778.0,34777.0,10.95497355]
[1625647849364,0.98924898,34778.0,34777.0,9.43778814]
[1625647850326,0.98924898,34778.0,34777.0,10.95487514]
[1625647851287,0.98924898,34778.0,34777.0,9.43778814]
[1625647851705,0.98924898,34778.0,34777.0,10.95470149]
[1625647851885,0.98924898,34778.0,34777.0,9.43778814]
[1625647852306,1.07403443,34778.0,34777.0,10.953928]
[1625647854652,0.73537162,34778.0,34777.0,10.953928]
[1625647854891,1.07400043,34778.0,34777.0,10.953928]
[1625647856697,0.98921498,34778.0,34777.0,9.43778814]
[1625647860606,0.5080641,34778.0,34777.0,9.43778814]
[1625647860784,0.25422976,34778.0,34777.0,10.95353106]
[1625647861025,0.59287814,34779.0,34777.0,10.95353106]
[1625647861324,0.59287814,34779.0,34778.0,6.23580983]
[1625647861445,0.59287814,34779.0,34778.0,6.47638527]
[1625647861565,0.33865918,34780.0,34778.0,6.91051027]
[1625647861686,0.01333304,34779.0,34778.0,6.91051027]
[1625647861865,0.00173304,34779.0,34778.0,0.67470044]
[1625647862225,0.001,34783.0,34778.0,0.67470044]
[1625647862226,0.01330104,34782.0,34778.0,8.07704128]
[1625647862465,0.01330084,34779.0,34778.0,8.07704128]
[1625647862705,0.01330084,34781.0,34779.0,0.00482823]
[1625647862825,0.01330084,34781.0,34779.0,0.26729823]
[1625647862947,0.001,34783.0,34780.0,5.7152713]
[1625647863067,0.001,34783.0,34780.0,6.1440293]
[1625647863188,0.001,34783.0,34782.0,5.71279656]
[1625647863426,0.001,34783.0,34782.0,6.19394744]
[1625647863548,0.01430062,34783.0,34782.0,6.63008955]
[1625647863793,0.001,34783.0,34782.0,6.63008955]
[1625647864030,0.0143006,34783.0,34782.0,6.63008955]
[1625647867219,0.001,34783.0,34782.0,6.63008955]
[1625647868362,0.001,34788.0,34782.0,6.63008955]
[1625647868538,0.001,34788.0,34787.0,4.204151]
[1625647868660,0.001,34788.0,34787.0,4.449811]
[1625647868780,0.01429989,34788.0,34787.0,4.449811]
[1625647869501,0.01429989,34788.0,34787.0,4.69038644]
[1625647869681,0.01429989,34788.0,34787.0,4.77648644]
[1625647869923,0.001,34788.0,34787.0,4.77648644]
[1625647870401,0.01431992,34788.0,34787.0,4.77648644]
[1625647870641,0.001,34788.0,34787.0,4.77648644]
[1625647871422,0.01432003,34788.0,34787.0,4.77648644]
[1625647871964,0.16935419,34789.0,34787.0,4.77648644]
[1625647872264,0.91675816,34792.0,34788.0,4.21432553]
[1625647872383,0.91675816,34792.0,34788.0,4.64391753]
[1625647872565,0.01328355,34791.0,34788.0,4.64391753]
[1625647872743,0.01328355,34791.0,34790.0,1.34856688]
[1625647873407,0.01328355,34791.0,34790.0,4.45408313]
[1625647873826,0.68955738,34791.0,34790.0,4.45408313]
[1625647874309,0.01328355,34791.0,34790.0,3.10551625]
[1625647874792,0.01328355,34791.0,34790.0,4.45384288]
[1625647875090,5.20302621,34792.0,34790.0,4.45384288]
[1625647875210,5.20302621,34792.0,34791.0,2.86522136]
[1625647875511,5.21630988,34792.0,34791.0,2.86522136]
[1625647877919,5.20302621,34792.0,34791.0,2.86522136]
[1625647878219,5.2163099,34792.0,34791.0,2.86522136]
[1625647878341,4.54015913,34792.0,34791.0,2.86522136]
[1625647878461,4.5534428,34792.0,34791.0,2.86522136]
[1625647878825,5.22955203,34792.0,34791.0,2.86522136]
[1625647879483,0.94325203,34792.0,34791.0,2.86522136]
[1625647879603,0.70267659,34792.0,34791.0,2.95112136]
[1625647879786,0.01328369,34792.0,34791.0,4.29910777]
[1625647879902,0.01328369,34792.0,34791.0,4.64633177]
[1625647881045,0.01328369,34792.0,34791.0,6.16315926]
[1625647881287,0.01328369,34792.0,34791.0,4.64633177]
[1625647881528,0.01328369,34792.0,34791.0,4.88690721]
[1625647881768,0.01328369,34792.0,34791.0,9.92470721]
[1625647885259,0.01328369,34792.0,34791.0,11.44075245]
[1625647886219,0.01328369,34792.0,34791.0,11.44558693]
[1625647886340,0.01328369,34792.0,34791.0,11.44075245]
[1625647887603,0.01328369,34792.0,34791.0,8.57553109]
[1625647887723,0.01328369,34792.0,34791.0,11.44071707]
[1625647888745,0.01328369,34792.0,34791.0,11.44555179]
[1625647889047,0.01328369,34792.0,34791.0,11.44071707]
[1625647889586,0.01328369,34792.0,34791.0,11.44555181]
[1625647890311,0.01328369,34792.0,34791.0,9.92950657]
[1625647898297,0.01328369,34792.0,34791.0,11.44500055]
[1625647899376,0.01328369,34792.0,34791.0,6.40720055]
[1625647899500,0.01328369,34792.0,34791.0,4.89170657]
[1625647902139,0.02655906,34792.0,34791.0,4.89170657]
[1625647902380,0.01328369,34792.0,34791.0,4.89170657]
[1625647902620,0.02655912,34792.0,34791.0,4.89170657]
[1625647905153,0.01327543,34792.0,34791.0,4.89170657]
[1625647905513,0.01327528,34795.0,34791.0,4.89170657]
[1625647905693,0.01327528,34795.0,34794.0,0.75019088]
[1625647905813,0.01327528,34795.0,34794.0,3.61552196]
[1625647906053,0.01327528,34795.0,34794.0,4.04642012]
[1625647907202,0.01327528,34795.0,34794.0,5.39507793]
[1625647907375,0.01327528,34795.0,34794.0,4.04642012]
[1625647907676,0.01327528,34795.0,34794.0,1.18108904]
[1625647907856,0.01327528,34795.0,34794.0,5.39518575]
[1625647908337,0.01327528,34795.0,34794.0,4.0466748]
[1625647908581,0.01327528,34795.0,34794.0,5.39508166]
[1625647909121,0.01327528,34795.0,34794.0,4.0466748]
[1625647911646,0.01327528,34795.0,34794.0,5.39594534]
[1625647912368,0.01327528,34795.0,34794.0,4.0466748]
[1625647912609,0.01327528,34795.0,34794.0,5.39464483]
[1625647917174,0.74686437,34795.0,34794.0,5.39464483]
[1625647919219,0.74686437,34795.0,34794.0,4.91349395]
[1625647919339,1.7624794,34795.0,34794.0,4.91349395]
[1625647919700,1.7624794,34795.0,34794.0,5.87579571]
[1625647920482,1.7624794,34795.0,34794.0,5.44973671]
[1625647920602,1.06951437,34795.0,34794.0,5.44973671]
[1625647920847,2.08515567,34795.0,34794.0,5.18069671]
[1625647921084,4.65825708,34795.0,34794.0,3.83272668]
[1625647921385,4.65825708,34795.0,34794.0,3.82788752]
[1625647921745,4.89883252,34795.0,34794.0,2.64794044]
[1625647922711,4.89883252,34795.0,34794.0,3.83127624]
[1625647923008,4.89883252,34795.0,34794.0,3.836119]
[1625647923309,3.18803364,34795.0,34794.0,5.18826608]
[1625647923489,2.00308111,34795.0,34794.0,5.18826608]
[1625647923971,0.98743981,34795.0,34794.0,5.18826608]
[1625647924089,0.74686437,34795.0,34794.0,5.18826608]
[1625647924452,0.74686437,34795.0,34794.0,6.70832779]
[1625647924934,1.76286543,34795.0,34794.0,5.18826608]
[1625647925953,1.76286543,34795.0,34794.0,6.70837685]
[1625647926373,1.76286543,34795.0,34794.0,5.18826608]
[1625647926853,1.56286543,34795.0,34794.0,5.18826608]
[1625647928537,1.56286543,34795.0,34794.0,5.33086608]
[1625647929502,1.56286543,34795.0,34794.0,6.85279482]
[1625647929920,1.50586543,34795.0,34794.0,6.85279482]
[1625647930165,0.48986437,34795.0,34794.0,6.85279482]
[1625647931663,0.54686437,34795.0,34794.0,6.85279482]
[1625647932086,1.56337406,34795.0,34794.0,6.85279482]
[1625647932326,1.50637406,34795.0,34794.0,6.85279482]
[1625647932568,0.48986437,34795.0,34794.0,6.85279482]
[1625647932814,1.50651195,34795.0,34794.0,6.85279482]
[1625647933232,0.48986437,34795.0,34794.0,6.85279482]
[1625647933956,1.01664668,34797.0,34794.0,6.85279482]
[1625647934077,5.40614668,34797.0,34794.0,6.85279482]
[1625647934196,4.3895,34797.0,34796.0,5.06899456]
[1625647934379,4.3895,34797.0,34796.0,5.31118456]
[1625647934498,5.40629112,34797.0,34796.0,5.31118456]
[1625647934617,5.419549,34797.0,34796.0,5.31603075]
[1625647935158,5.476549,34797.0,34796.0,5.31603075]
[1625647935401,6.66276719,34797.0,34796.0,3.79533238]
[1625647935578,6.66276719,34797.0,34796.0,3.55314238]
[1625647937323,8.01868224,34797.0,34796.0,3.55314238]
[1625647943632,8.01868224,34797.0,34796.0,3.79500238]
[1625647944894,6.66276719,34797.0,34796.0,3.79500238]
[1625647945736,6.60576719,34797.0,34796.0,3.55314238]
[1625647948320,6.66276719,34797.0,34796.0,3.55314238]
[1625647949219,5.58897607,34797.0,34796.0,3.55314238]
[1625647949339,6.60614842,34797.0,34796.0,3.79885238]
[1625647949519,6.60615676,34797.0,34796.0,3.79885238]
[1625647949701,6.60615676,34797.0,34796.0,5.31618542]
[1625647950059,6.66315676,34797.0,34796.0,5.31618542]
[1625647950300,6.60615676,34797.0,34796.0,5.31618542]
[1625647951023,5.41993857,34797.0,34796.0,5.31618542]
[1625647951322,6.60659574,34797.0,34796.0,5.31618542]
[1625647951743,5.92860331,34797.0,34796.0,5.82173637]
[1625647952464,7.11521666,34797.0,34796.0,5.82173637]
[1625647952884,5.92860331,34797.0,34796.0,5.82173637]
[1625647953244,5.92860331,34797.0,34796.0,5.90913637]
[1625647954507,5.92860331,34797.0,34796.0,5.82173637]
[1625647958892,5.98560331,34797.0,34796.0,5.82173637]
[1625647959074,5.92860331,34797.0,34796.0,5.82173637]
[1625647959854,5.98560331,34797.0,34796.0,5.82173637]
[1625647960215,7.17201835,34797.0,34796.0,5.90733637]
[1625647960457,5.92860331,34797.0,34796.0,5.90733637]
[1625647960635,5.92860331,34797.0,34796.0,5.82173637]
[1625647963518,4.91143096,34797.0,34796.0,5.82173637]
[1625647963760,5.92826882,34797.0,34796.0,5.82173637]
[1625647966285,4.91143096,34797.0,34796.0,5.82173637]
[1625647966644,4.91143096,34797.0,34796.0,5.90823637]
[1625647977407,0.52193096,34797.0,34796.0,5.90823637]
[1625647977766,0.52193096,34797.0,34796.0,10.18473637]
[1625647977888,0.01326622,34797.0,34796.0,10.18473637]
[1625647979147,0.01326622,34797.0,34796.0,10.61845937]
[1625647979327,0.0132361,34798.0,34796.0,10.61845937]
[1625647979507,0.0132361,34797.0,34796.0,10.61845937]
[1625647979686,0.0132361,34797.0,34796.0,5.04727919]
[1625647979807,0.0132361,34797.0,34796.0,5.042433]
[1625647979927,0.0132361,34797.0,34796.0,10.5955598]
[1625647980047,0.01323597,34798.0,34796.0,10.60041374]
[1625647980347,0.01323599,34797.0,34796.0,5.04728694]
[1625647980527,0.01323599,34797.0,34796.0,5.042433]
[1625647980649,0.01323599,34797.0,34796.0,10.59651769]
[1625647980828,0.01323605,34798.0,34796.0,10.60137167]
[1625647981068,0.50813142,34799.0,34797.0,5.5537591]
[1625647981249,0.50813142,34799.0,34798.0,5.5537995]
[1625647981368,0.50813142,34799.0,34798.0,5.55865345]
[1625647981850,0.52136728,34799.0,34798.0,5.55865345]
[1625647982089,0.52136728,34799.0,34798.0,5.79922889]
[1625647982210,0.01323586,34799.0,34798.0,5.79922889]
[1625647986532,0.01323553,34800.0,34798.0,5.79922889]
[1625647986712,0.01323539,34799.0,34798.0,5.79922889]
[1625647986833,0.01323539,34799.0,34798.0,0.24542939]
[1625647987015,0.01323539,34799.0,34798.0,6.46208124]
[1625647987252,0.01323534,34800.0,34798.0,6.46693503]
[1625647987493,0.01323548,34799.0,34798.0,6.46693503]
[1625647987853,0.01323548,34799.0,34798.0,6.46208124]
[1625647987973,0.52128035,34800.0,34798.0,6.46693513]
[1625647988214,0.52128035,34800.0,34799.0,0.24057544]
[1625647988333,0.50804482,34800.0,34799.0,6.46926403]
[1625647988517,0.52128065,34800.0,34799.0,6.46926403]
[1625647988998,0.01323583,34800.0,34799.0,6.46926403]
[1625647989417,0.52131867,34800.0,34799.0,6.46926403]
[1625647992122,0.86007384,34800.0,34799.0,6.46926403]
[1625647992603,0.01323583,34800.0,34799.0,1.75933507]
[1625647993021,0.86000614,34800.0,34799.0,6.47528562]
[1625647994582,0.86000614,34800.0,34799.0,0.91913655]
[1625647994762,0.86000614,34800.0,34799.0,0.91913485]
[1625647994885,0.86000614,34800.0,34799.0,6.48250867]
[1625647995664,0.86000614,34800.0,34799.0,6.48250871]
[1625647996025,0.01323583,34800.0,34799.0,6.48250871]
[1625647996148,0.01324231,34800.0,34799.0,6.48250871]
[1625647998851,0.3519362,34800.0,34799.0,6.48250871]
[1625648000716,0.01324231,34800.0,34799.0,6.48250871]
[1625648001017,0.35197624,34800.0,34799.0,6.48250871]
[1625648002759,0.40897624,34800.0,34799.0,6.48250871]
[1625648005282,0.35197624,34800.0,34799.0,6.48250871]
[1625648005407,0.40897624,34800.0,34799.0,6.48250871]
[1625648005943,0.40897624,34800.0,34799.0,6.56800871]
[1625648008348,0.40897624,34800.0,34799.0,6.48250871]
[1625648011772,0.57849876,34800.0,34799.0,6.48250871]
[1625648012255,1.25611453,34800.0,34799.0,6.48250871]
[1625648012612,6.84182993,34800.0,34799.0,6.48250871]
[1625648013036,7.08346993,34800.0,34799.0,6.48250871]
[1625648014121,7.08346993,34800.0,34799.0,4.96522494]
[1625648014421,9.62475976,34800.0,34799.0,4.96522494]
[1625648014664,8.26941648,34800.0,34799.0,4.96522494]
[1625648016404,8.26941648,34800.0,34799.0,4.96037271]
[1625648017488,9.6246948,34800.0,34799.0,4.96037271]
[1625648017788,8.26941648,34800.0,34799.0,4.96037271]
[1625648017910,8.26941648,34800.0,34799.0,4.96522736]
[1625648018450,8.26941648,34800.0,34799.0,4.96037271]
[1625648018750,9.62468517,34800.0,34799.0,4.96037271]
[1625648027105,9.62468517,34800.0,34799.0,4.71979727]
[1625648027283,9.62468517,34800.0,34799.0,1.61107603]
[1625648027526,9.62468517,34800.0,34798.0,0.38417544]
[1625648027824,1.41215498,34799.0,34798.0,0.38417544]
[1625648028003,1.42539275,34799.0,34798.0,0.38417544]
[1625648028425,1.90654363,34799.0,34798.0,0.1436]
[1625648028787,3.43074491,34799.0,34798.0,0.1436]
[1625648028908,3.43074491,34799.0,34798.0,0.001]
[1625648029087,3.43074491,34799.0,34791.0,1.51987822]
[1625648029206,5.12448129,34799.0,34795.0,0.50739207]
[1625648029327,5.15842504,34799.0,34795.0,0.50739207]
[1625648029446,5.15842504,34799.0,34768.0,2.45482968]
[1625648029447,1.52444023,34796.0,34794.0,0.1692055]
[1625648029568,0.057,34795.0,34794.0,0.1692055]
[1625648029689,1.58140858,34795.0,34794.0,0.50758708]
[1625648029808,1.59470206,34795.0,34794.0,0.01098708]
[1625648029928,1.59470206,34795.0,34784.0,1.7634249]
[1625648030170,1.52445821,34792.0,34784.0,0.24057544]
[1625648030290,0.057,34791.0,34784.0,0.24057544]
[1625648030408,0.48115088,34789.0,34784.0,0.24057544]
[1625648030530,0.53815088,34789.0,34784.0,0.24057544]
[1625648030891,0.55143873,34789.0,34784.0,0.24057544]
[1625648033417,0.55143873,34789.0,34788.0,0.003]
[1625648034918,0.53815088,34789.0,34788.0,0.003]
[1625648035342,0.55143897,34789.0,34788.0,0.003]
[1625648036181,0.53815088,34789.0,34788.0,0.003]
[1625648036360,0.53815088,34789.0,34787.0,0.24157544]
[1625648041408,0.48115088,34789.0,34787.0,0.24157544]
[1625648041956,0.56571322,34789.0,34787.0,0.24157544]
[1625648042073,0.56571322,34789.0,34788.0,0.328]
[1625648042432,5.52041322,34789.0,34788.0,0.328]
[1625648042552,5.57741322,34789.0,34788.0,0.328]
[1625648044060,5.57741322,34789.0,34788.0,0.087]
[1625648044421,5.57741322,34789.0,34787.0,0.24157544]
[1625648045090,5.52041322,34789.0,34787.0,0.24157544]
[1625648046286,5.43585088,34789.0,34787.0,0.24157544]
[1625648047125,5.52039539,34789.0,34787.0,0.24157544]
[1625648047305,5.74736539,34789.0,34787.0,0.24157544]
[1625648047728,5.74736539,34789.0,34787.0,1.41798423]
[1625648048152,5.66282088,34789.0,34787.0,0.24157544]
[1625648048633,5.66282088,34789.0,34788.0,0.08402848]
[1625648049112,5.67612586,34789.0,34788.0,0.08402848]
[1625648049892,5.67612586,34789.0,34787.0,0.32552124]
[1625648050192,0.01330577,34788.0,34787.0,0.32552124]
[1625648050912,0.01330577,34788.0,34783.0,1.46929867]
[1625648051033,0.01330577,34788.0,34783.0,0.60769867]
[1625648051336,0.01330577,34788.0,34784.0,0.08408475]
[1625648051337,1.18113597,34787.0,34784.0,0.08408475]
[1625648051574,1.18113597,34787.0,34782.0,0.002]
[1625648051575,1.1812027,34786.0,34783.0,0.08414933]
[1625648051815,1.18120702,34785.0,34783.0,0.08414933]
[1625648052057,1.18120702,34785.0,34782.0,0.002]
[1625648052058,1.19452211,34785.0,34782.0,0.08617409]
[1625648052298,1.18120702,34785.0,34782.0,0.08617409]
[1625648052417,1.18118525,34786.0,34783.0,0.08416368]
[1625648052537,0.48115088,34784.0,34783.0,0.08416368]
[1625648052661,0.48115088,34784.0,34783.0,0.38913]
[1625648053078,0.48115088,34784.0,34783.0,4.06523]
[1625648054282,0.48115088,34784.0,34783.0,5.40803309]
[1625648056265,0.48115088,34784.0,34783.0,5.41286284]
[1625648057709,0.48115088,34784.0,34783.0,6.41998772]
[1625648058431,0.48115088,34784.0,34783.0,7.92938584]
[1625648061192,0.48115088,34784.0,34783.0,8.35847384]
[1625648064620,0.24057544,34784.0,34783.0,8.35847384]
[1625648064863,0.24057544,34784.0,34783.0,10.03399808]
[1625648065642,0.24057544,34784.0,34783.0,8.35847384]
[1625648068407,0.23737544,34784.0,34783.0,8.35847384]
[1625648071111,0.23737544,34784.0,34783.0,9.53316583]
[1625648071712,0.001,34789.0,34783.0,9.53316583]
[1625648071833,0.001,34789.0,34788.0,3.52416253]
[1625648072015,0.001,34789.0,34788.0,3.58116253]
[1625648072314,0.001,34789.0,34788.0,5.09615878]
[1625648072617,0.001,34789.0,34788.0,5.33673422]
[1625648075318,4.29507544,34790.0,34788.0,5.33673422]
[1625648075440,4.29507544,34790.0,34789.0,3.52455708]
[1625648075559,4.29507544,34790.0,34789.0,3.58155708]
[1625648076099,4.29507544,34790.0,34789.0,3.586384]
[1625648076340,4.29507544,34790.0,34789.0,3.58155708]
[1625648080075,4.29507544,34790.0,34789.0,3.5863841]
[1625648080193,4.29507544,34790.0,34789.0,5.09698055]
[1625648083679,4.29507544,34790.0,34789.0,5.09215353]
[1625648083919,4.29507544,34790.0,34789.0,5.09698195]
[1625648087164,4.30838948,34790.0,34789.0,5.09698195]
[1625648087344,4.30838948,34790.0,34789.0,5.76987617]
[1625648089029,4.30838948,34790.0,34789.0,4.25927972]
[1625648092576,4.39314251,34790.0,34789.0,4.25927972]
[1625648092757,4.39314251,34790.0,34789.0,5.77139381]
[1625648093056,4.30838948,34790.0,34789.0,5.77139381]
[1625648094917,0.25388948,34790.0,34789.0,5.77139381]
[1625648095518,0.33865217,34790.0,34789.0,5.77139381]
[1625648095767,0.25388948,34790.0,34789.0,5.77139381]
[1625648096118,0.25388948,34790.0,34789.0,10.16259381]
[1625648096898,0.25388948,34790.0,34789.0,5.77139381]
[1625648097558,4.01078948,34790.0,34789.0,5.77139381]
[1625648101471,0.25388948,34790.0,34789.0,5.77139381]
[1625648107605,0.25388948,34790.0,34789.0,5.85859381]
[1625648107724,0.01331404,34790.0,34789.0,5.85859381]
[1625648107843,0.08478245,34793.0,34789.0,5.85859381]
[1625648107962,0.08478245,34793.0,34789.0,6.28831481]
[1625648108145,0.001,34795.0,34792.0,5.75226562]
[1625648108264,0.001,34795.0,34792.0,5.99040562]
[1625648108442,0.001,34795.0,34794.0,5.74984793]
[1625648108742,0.001,34795.0,34794.0,5.75384193]
[1625648108865,0.001,34795.0,34794.0,5.99441737]
[1625648109043,4.89671045,34795.0,34794.0,5.99924528]
[1625648109164,4.8834,34795.0,34794.0,5.99924528]
[1625648109463,4.89671049,34795.0,34794.0,5.99924528]
[1625648109704,4.8834,34795.0,34794.0,5.99924528]
[1625648111452,4.8834,34795.0,34794.0,5.94224528]
[1625648111750,4.96819478,34795.0,34794.0,5.94224528]
[1625648111870,4.98149942,34795.0,34794.0,5.94224528]
[1625648111991,4.98149942,34795.0,34794.0,5.93825128]
[1625648111992,4.89670464,34795.0,34794.0,5.93825128]
[1625648112109,4.8834,34795.0,34794.0,5.93825128]
[1625648112469,4.8834,34795.0,34794.0,4.43132095]
[1625648112954,4.89670467,34795.0,34794.0,4.43132095]
[1625648113379,5.57404906,34795.0,34794.0,4.43132095]
[1625648114758,6.59002679,34795.0,34794.0,4.43132095]
[1625648115183,6.80584679,34795.0,34794.0,4.43132095]
[1625648116632,6.80584679,34795.0,34794.0,4.42649304]